[Event "FIDE World Rapid-ch Open 2018"]
[White "Teterev, Vitaly"]
[Black "Yeritsyan, Aram"]
[Site "St. Petersburg"]
[Round "6.89"]
[Annotator "ChessBase"]
[Result "1-0"]
[Date "2018.12.27"]
[WhiteElo "2486"]
[BlackElo "2372"]
[PlyCount "127"]
[TimeControl "900+10"]

1. Nf3 {[%emt 0:0:0]} Nf6 {[%emt 0:0:0]} 2. g3 {[%emt 0:0:0]} b5 {[%emt 0:0:0]
} 3. Bg2 {[%emt 0:0:0]} Bb7 {[%emt 0:0:0]} 4. 0-0 {[%emt 0:0:0]} e6 {[%emt 0:0:0]} 5. d4 {[%emt 0:0:2]} c5 {[%emt 0:0:0]} 6. Na3 {[%emt 0:0:3]
} b4 {[%emt 0:0:5]} 7. Nc4 {[%emt 0:0:2]} d5 {[%emt 0:0:1]} 8. Nce5 {[%emt 0:0:4]} Nbd7 {[%emt 0:0:2]} 9. c4 {[%emt 0:0:35]} Be7 {[%emt 0:0:12]
} 10. cxd5 {[%emt 0:0:24]} Bxd5 {[%emt 0:0:36]} 11. dxc5 {[%emt 0:0:34]
} Nxc5 {[%emt 0:0:29]} 12. Ng5 {[%emt 0:1:21]} 0-0 {[%emt 0:0:0]} 13. Nc6 {[%emt 0:0:26]} Qc7 {[%emt 0:0:24]} 14. Nxe7+ {[%emt 0:0:31]} Qxe7 {[%emt 0:0:2]} 15. Bxd5 {[%emt 0:1:17]} Nxd5 {[%emt 0:1:56]} 16. Qc2 {[%emt 0:0:3]
} f5 {[%emt 0:1:34]} 17. e4 {[%emt 0:0:48]} Nb6 {[%emt 0:0:54]
} 18. Be3 {[%emt 0:1:47]} Rac8 {[%emt 0:0:2]} 19. exf5 {[%emt 0:0:8]} exf5 {[%emt 0:2:29]} 20. Rac1 {[%emt 0:1:25]} Ne4 {[%emt 0:4:0]} 21. Qb3+ {[%emt 0:0:2]
} Kh8 {[%emt 0:0:1]} 22. Rxc8 {[%emt 0:1:12]} Nxc8 {[%emt 0:0:0]} 23. Nxe4 {[%emt 0:0:15]} fxe4 {[%emt 0:0:12]} 24. Rc1 {[%emt 0:0:27]
} Nb6 {[%emt 0:1:4]} 25. h4 {[%emt 0:1:56]} h6 {[%emt 0:1:36]} 26. Bc5 {[%emt 0:0:17]
} Qc7 {[%emt 0:0:1]} 27. Qxb4 {[%emt 0:0:32]} Re8 {[%emt 0:0:0]} 28. Be3 {[%emt 0:0:15]} Qb7 {[%emt 0:0:1]} 29. Qb5 {[%emt 0:0:6]} Qf7 {[%emt 0:0:11]} 30. Rd1 {[%emt 0:0:32]} Nc4 {[%emt 0:0:23]} 31. Rd7 {[%emt 0:0:7]
} Qe6 {[%emt 0:0:1]} 32. Qd5 {[%emt 0:2:9]} Nxe3 {[%emt 0:0:0]} 33. Qxe6 {[%emt 0:0:4]} Rxe6 {[%emt 0:0:1]} 34. fxe3 {[%emt 0:0:1]} Ra6 {[%emt 0:0:23]} 35. a3 {[%emt 0:0:5]} Rb6 {[%emt 0:0:1]} 36. b4 {[%emt 0:0:3]
} Ra6 {[%emt 0:0:1]} 37. Rd4 {[%emt 0:0:14]} Rxa3 {[%emt 0:0:0]} 38. Rxe4 {[%emt 0:0:0]} a5 {[%emt 0:0:4]} 39. bxa5 {[%emt 0:0:4]} Rxa5 {[%emt 0:0:1]} 40. Kf2 {[%emt 0:0:1]} Kg8 {[%emt 0:0:2]} 41. Kf3 {[%emt 0:0:1]
} Kf7 {[%emt 0:0:3]} 42. Rb4 {[%emt 0:0:4]} Ra6 {[%emt 0:0:0]} 43. g4 {[%emt 0:0:10]} Kf6 {[%emt 0:0:4]} 44. Rb5 {[%emt 0:0:10]} g6 {[%emt 0:0:6]
} 45. g5+ {[%emt 0:1:29]} hxg5 {[%emt 0:0:0]} 46. hxg5+ {[%emt 0:0:1]
} Ke6 {[%emt 0:0:1]} 47. Kf4 {[%emt 0:0:2]} Rc6 {[%emt 0:0:0]} 48. Rb7 {[%emt 0:0:9]} Rc4+ {[%emt 0:1:4]} 49. e4 {[%emt 0:0:3]} Rc1 {[%emt 0:0:1]} 50. Rg7 {[%emt 0:1:16]} Rf1+ {[%emt 0:0:1]} 51. Ke3 {[%emt 0:0:1]
} Re1+ {[%emt 0:0:23]} 52. Kf3 {[%emt 0:0:2]} Rf1+ {[%emt 0:0:0]} 53. Ke2 {[%emt 0:0:2]} Rg1 {[%emt 0:0:6]} 54. Rxg6+ {[%emt 0:0:11]
} Ke5 {[%emt 0:0:2]} 55. Kf2 {[%emt 0:0:33]} Rg4 {[%emt 0:0:8]} 56. Kf3 {[%emt 0:0:1]
} Rf4+ {[%emt 0:0:53]} 57. Kg3 {[%emt 0:0:2]} Rxe4 {[%emt 0:0:0]} 58. Rf6 {[%emt 0:0:4]} Ra4 {[%emt 0:0:12]} 59. Kh3 {[%emt 0:0:15]} Rb4 {[%emt 0:0:3]} 60. Rf8 {[%emt 0:0:28]} Ra4 {[%emt 0:0:11]} 61. Rf3 {[%emt 0:1:13]
} Rb4 {[%emt 0:0:1]} 62. g6 {[%emt 0:0:18]} Rb6 {[%emt 0:0:0]} 63. g7 {[%emt 0:0:11]} Rh6+ {[%emt 0:0:21]} 64. Kg2 {[%emt 0:0:1]} 1-0

[Event "FIDE World Rapid-ch Open 2018"]
[White "Drygalov, Sergey"]
[Black "Makoveev, Ilya"]
[Site "St. Petersburg"]
[Round "6.90"]
[Annotator "NA"]
[Result "1-0"]
[Date "2018.12.27"]
[WhiteElo "2446"]
[BlackElo "2257"]
[PlyCount "75"]
[TimeControl "900+10"]

1. d4 {[%emt 0:0:0]} Nf6 {[%emt 0:0:0]} 2. c4 {[%emt 0:0:0]} e6 {[%emt 0:0:0]} 3. Nf3 {[%emt 0:0:0]} b6 {[%emt 0:0:8]} 4. g3 {[%emt 0:0:3]} Ba6 {[%emt 0:0:2]} 5. Qc2 {[%emt 0:0:3]} c5 {[%emt 0:0:3]} 6. d5 {[%emt 0:0:0]} exd5 {[%emt 0:0:1]} 7. cxd5 {[%emt 0:0:2]} Bb7 {[%emt 0:0:1]} 8. Bg2 {[%emt 0:0:18]} Nxd5 {[%emt 0:0:2]} 9. 0-0 {[%emt 0:0:9]} Be7 {[%emt 0:0:0]} 10. Rd1 {[%emt 0:0:3]} Nc6 {[%emt 0:0:2]} 11. Qa4 {[%emt 0:1:17]} Nf6 {[%emt 0:2:47]} 12. Nc3 {[%emt 0:0:49]} 0-0 {[%emt 0:3:59]} 13. e4 {[%emt 0:0:0]} Nd4 {[%emt 0:2:52]} 14. Nxd4 {[%emt 0:2:26]} cxd4 {[%emt 0:0:1]} 15. Qxd4 {[%emt 0:0:31]} Bc5 {[%emt 0:0:1]} 16. Qd3 {[%emt 0:0:10]} Ng4 {[%emt 0:2:47]
} 17. Rf1 {[%emt 0:0:2]} Qf6 {[%emt 0:1:32]} 18. Qe2 {[%emt 0:0:0]} Qg6 {[%emt 0:0:13]} 19. Bf4 {[%emt 0:3:41]} Rae8 {[%emt 0:1:18]} 20. Rad1 {[%emt 0:1:56]} d5 {[%emt 0:1:42]} 21. Nxd5 {[%emt 0:2:13]} Ba6 {[%emt 0:0:12]
} 22. Qxa6 {[%emt 0:0:59]} Qh5 {[%emt 0:0:1]} 23. h3 {[%emt 0:0:0]} Nxf2 {[%emt 0:0:1]} 24. Kh2 {[%emt 0:0:2]} Nxd1 {[%emt 0:0:51]} 25. Bf3 {[%emt 0:0:2]} Qg6 {[%emt 0:0:7]} 26. Rxd1 {[%emt 0:0:3]} f5 {[%emt 0:0:13]
} 27. e5 {[%emt 0:0:7]} Qf7 {[%emt 0:0:8]} 28. b4 {[%emt 0:0:0]} Be7 {[%emt 0:0:11]} 29. Nc7 {[%emt 0:0:15]} Rd8 {[%emt 0:0:7]} 30. Bd5 {[%emt 0:0:3]} Rxd5 {[%emt 0:0:1]} 31. Nxd5 {[%emt 0:0:1]} g5 {[%emt 0:0:6]
} 32. Qc4 {[%emt 0:1:9]} Kh8 {[%emt 0:0:2]} 33. e6 {[%emt 0:0:0]} Qxe6 {[%emt 0:0:18]} 34. Qd4+ {[%emt 0:0:1]} Bf6 {[%emt 0:0:27]} 35. Nxf6 {[%emt 0:0:4]} Qe2+ {[%emt 0:0:2]} 36. Kg1 {[%emt 0:0:4]} Kg7 {[%emt 0:0:13]
} 37. Nh5+ {[%emt 0:0:14]} Kg6 {[%emt 0:0:14]} 38. Qg7+ {[%emt 0:0:2]
} 1-0

[Event "FIDE World Rapid-ch Open 2018"]
[White "Abdusattorov, Nodirbek"]
[Black "Hakobyan, Aram"]
[Site "St. Petersburg"]
[Round "6.91"]
[Annotator "ChessBase"]
[Result "1-0"]
[Date "2018.12.27"]
[WhiteElo "2546"]
[BlackElo "2545"]
[PlyCount "85"]
[TimeControl "900+10"]

1. e4 {[%emt 0:0:0]} e5 {[%emt 0:0:0]} 2. Nf3 {[%emt 0:0:0]} Nc6 {[%emt 0:0:0]
} 3. Nc3 {[%emt 0:0:0]} Nf6 {[%emt 0:0:4]} 4. d4 {[%emt 0:0:0]} exd4 {[%emt 0:0:3]} 5. Nxd4 {[%emt 0:0:0]} Bb4 {[%emt 0:0:1]} 6. Nxc6 {[%emt 0:0:1]} bxc6 {[%emt 0:0:14]} 7. Bd3 {[%emt 0:0:2]} 0-0 {[%emt 0:0:8]
} 8. 0-0 {[%emt 0:0:2]} d5 {[%emt 0:0:32]} 9. exd5 {[%emt 0:0:0]} cxd5 {[%emt 0:0:2]} 10. h3 {[%emt 0:0:3]} c6 {[%emt 0:0:2]} 11. Qf3 {[%emt 0:0:3]} Re8 {[%emt 0:0:20]} 12. Bg5 {[%emt 0:0:19]} h6 {[%emt 0:0:0]} 13. Bh4 {[%emt 0:0:3]} Bd6 {[%emt 0:1:55]} 14. Rfe1 {[%emt 0:2:30]} Be6 {[%emt 0:1:29]} 15. Ne2 {[%emt 0:1:51]} c5 {[%emt 0:1:32]} 16. Rad1 {[%emt 0:3:6]
} Rb8 {[%emt 0:3:52]} 17. b3 {[%emt 0:1:34]} a5 {[%emt 0:1:19]
} 18. c4 {[%emt 0:1:7]} d4 {[%emt 0:0:25]} 19. Nf4 {[%emt 0:0:25]} Bxf4 {[%emt 0:1:50]
} 20. Qxf4 {[%emt 0:0:2]} g5 {[%emt 0:1:12]} 21. Bxg5 {[%emt 0:0:37]
} hxg5 {[%emt 0:0:1]} 22. Qxg5+ {[%emt 0:0:3]} Kf8 {[%emt 0:0:0]} 23. Qxc5+ {[%emt 0:0:44]} Qe7 {[%emt 0:0:45]} 24. Qxa5 {[%emt 0:0:0]} Nd7 {[%emt 0:0:38]} 25. Bb1 {[%emt 0:0:39]} Qf6 {[%emt 0:1:4]} 26. Qa3+ {[%emt 0:0:17]} Kg7 {[%emt 0:0:46]} 27. Qd6 {[%emt 0:0:21]} Bf5 {[%emt 0:0:54]
} 28. Qxf6+ {[%emt 0:0:19]} Kxf6 {[%emt 0:0:1]} 29. Rxe8 {[%emt 0:0:7]
} Rxe8 {[%emt 0:0:2]} 30. Bxf5 {[%emt 0:0:1]} Kxf5 {[%emt 0:0:0]} 31. Rxd4 {[%emt 0:0:2]} Re1+ {[%emt 0:0:1]} 32. Kh2 {[%emt 0:0:2]
} Ke6 {[%emt 0:0:4]} 33. b4 {[%emt 0:0:41]} Re2 {[%emt 0:0:25]} 34. a4 {[%emt 0:0:13]
} Ra2 {[%emt 0:0:2]} 35. Re4+ {[%emt 0:1:16]} Kf6 {[%emt 0:0:0]} 36. c5 {[%emt 0:0:44]} Rxa4 {[%emt 0:0:7]} 37. c6 {[%emt 0:0:14]} Nb6 {[%emt 0:0:2]} 38. Re8 {[%emt 0:0:20]} Nd5 {[%emt 0:0:41]} 39. b5 {[%emt 0:0:0]} Rb4 {[%emt 0:0:9]} 40. Rb8 {[%emt 0:0:33]} Ke6 {[%emt 0:0:9]} 41. b6 {[%emt 0:0:23]} Rc4 {[%emt 0:0:25]} 42. b7 {[%emt 0:0:9]} Ne7 {[%emt 0:0:0]} 43. Re8 {[%emt 0:0:3]} 1-0

[Event "FIDE World Rapid-ch Open 2018"]
[White "Vaisser, Anatoli"]
[Black "Guimaraes, Diogo Duarte"]
[Site "St. Petersburg"]
[Round "6.92"]
[Annotator "ChessBase"]
[Result "1-0"]
[Date "2018.12.27"]
[WhiteElo "2505"]
[BlackElo "2278"]
[PlyCount "111"]
[TimeControl "900+10"]

1. d4 {[%emt 0:0:0]} Nf6 {[%emt 0:5:25]} 2. c4 {[%emt 0:0:0]} c6 {[%emt 0:0:0]} 3. Nc3 {[%emt 0:0:8]} d5 4. cxd5 {[%emt 0:0:4]} cxd5 {[%emt 0:0:0]} 5. Bf4 {[%emt 0:0:7]} Nc6 {[%emt 0:0:0]} 6. e3 {[%emt 0:0:3]} a6 {[%emt 0:0:1]
} 7. Bd3 {[%emt 0:0:7]} Bg4 {[%emt 0:0:38]} 8. Nge2 {[%emt 0:0:0]} e6 {[%emt 0:2:28]} 9. Rc1 {[%emt 0:0:10]} Bd6 {[%emt 0:0:15]} 10. f3 {[%emt 0:0:7]} Bh5 {[%emt 0:0:40]} 11. 0-0 {[%emt 0:0:17]} Bg6 {[%emt 0:0:0]} 12. Na4 {[%emt 0:1:21]} 0-0 {[%emt 0:0:43]} 13. Bxd6 {[%emt 0:2:26]} Qxd6 {[%emt 0:0:2]} 14. Nc5 {[%emt 0:0:16]} Bxd3 {[%emt 0:1:54]} 15. Qxd3 {[%emt 0:0:8]
} Rfb8 {[%emt 0:0:56]} 16. Rc3 {[%emt 0:1:7]} Nb4 {[%emt 0:0:0]} 17. Qb1 {[%emt 0:0:16]} b6 {[%emt 0:0:3]} 18. Na4 {[%emt 0:0:49]} Nd7 {[%emt 0:1:51]} 19. Rfc1 {[%emt 0:1:0]} b5 {[%emt 0:0:7]} 20. Nc5 {[%emt 0:0:9]
} a5 {[%emt 0:0:53]} 21. Nxd7 {[%emt 0:4:10]} Qxd7 {[%emt 0:0:0]} 22. Rc7 {[%emt 0:0:5]} Qe8 {[%emt 0:0:21]} 23. a3 {[%emt 0:0:31]} Na6 {[%emt 0:0:1]} 24. R7c6 {[%emt 0:0:5]} Rc8 {[%emt 0:0:30]} 25. Qc2 {[%emt 0:0:13]
} Rxc6 {[%emt 0:0:17]} 26. Qxc6 {[%emt 0:0:2]} b4 {[%emt 0:0:0]} 27. a4 {[%emt 0:1:13]} Qxc6 {[%emt 0:0:24]} 28. Rxc6 {[%emt 0:0:1]} Kf8 {[%emt 0:0:3]} 29. Nc1 {[%emt 0:0:12]} Ke7 {[%emt 0:0:18]} 30. Nb3 {[%emt 0:0:1]
} Ra7 {[%emt 0:0:22]} 31. Nxa5 {[%emt 0:0:51]} Kd7 {[%emt 0:0:0]} 32. Rc1 {[%emt 0:0:43]} Nb8 {[%emt 0:0:4]} 33. Nb3 {[%emt 0:0:4]} Nc6 {[%emt 0:0:32]} 34. Kf2 {[%emt 0:0:23]} Kd6 {[%emt 0:0:3]} 35. Nc5 {[%emt 0:0:3]
} e5 {[%emt 0:0:7]} 36. dxe5+ {[%emt 0:0:9]} Nxe5 {[%emt 0:0:0]} 37. a5 {[%emt 0:1:17]} Nc4 {[%emt 0:0:15]} 38. Nd3 {[%emt 0:1:21]} Rxa5 {[%emt 0:0:3]} 39. Rc2 {[%emt 0:0:15]} b3 {[%emt 0:0:25]} 40. Rc3 {[%emt 0:0:8]
} Rb5 {[%emt 0:0:8]} 41. e4 {[%emt 0:0:9]} dxe4 {[%emt 0:0:0]} 42. fxe4 {[%emt 0:0:11]} Na5 {[%emt 0:0:25]} 43. Ke3 {[%emt 0:0:5]} Rh5 {[%emt 0:0:4]} 44. h3 {[%emt 0:0:1]} Rg5 {[%emt 0:0:1]} 45. g4 {[%emt 0:0:1]
} h5 {[%emt 0:0:0]} 46. e5+ {[%emt 0:0:8]} Ke6 {[%emt 0:0:0]} 47. Kf4 {[%emt 0:0:14]} f6 {[%emt 0:0:2]} 48. Rc5 {[%emt 0:0:10]} hxg4 {[%emt 0:0:16]} 49. hxg4 {[%emt 0:0:9]} Nb7 {[%emt 0:0:3]} 50. Rb5 {[%emt 0:0:14]
} Nd8 {[%emt 0:0:3]} 51. Rxb3 {[%emt 0:0:7]} Nc6 {[%emt 0:0:0]} 52. Rb6 {[%emt 0:0:15]} Kd5 {[%emt 0:0:5]} 53. e6 {[%emt 0:0:15]} Ne5 {[%emt 0:0:54]} 54. Rb5+ {[%emt 0:0:35]} Kc6 {[%emt 0:0:23]} 55. Rxe5 {[%emt 0:0:10]
} Rg6 {[%emt 0:0:4]} 56. e7 {[%emt 0:0:8] Kd5 Ke4+} 1-0

[Event "FIDE World Rapid-ch Open 2018"]
[White "Dubrovin, Robert"]
[Black "Zakhartsov, Vladimir"]
[Site "St. Petersburg"]
[Round "6.93"]
[Annotator "ChessBase"]
[Result "1/2-1/2"]
[Date "2018.12.27"]
[WhiteElo "2220"]
[BlackElo "2486"]
[PlyCount "124"]
[TimeControl "900+10"]

1. d4 {[%emt 0:0:0]} Nf6 {[%emt 0:0:0]} 2. c4 {[%emt 0:0:0]} g6 {[%emt 0:0:0]} 3. Nc3 {[%emt 0:0:0]} d5 {[%emt 0:0:0]} 4. Nf3 {[%emt 0:0:3]} Bg7 {[%emt 0:0:0]} 5. e3 {[%emt 0:0:6]} 0-0 {[%emt 0:0:9]} 6. b4 {[%emt 0:0:0]} a5 {[%emt 0:0:8]} 7. b5 {[%emt 0:0:3]} c5 {[%emt 0:0:1]} 8. bxc6 {[%emt 0:0:2]
} Nxc6 {[%emt 0:0:3]} 9. Ba3 {[%emt 0:0:22]} Re8 {[%emt 0:0:0]} 10. Be2 {[%emt 0:0:32]} Bf5 {[%emt 0:0:39]} 11. 0-0 {[%emt 0:0:8]} Nb4 {[%emt 0:0:5]} 12. Rc1 {[%emt 0:0:27]} Rc8 {[%emt 0:0:50]} 13. Ne5 {[%emt 0:1:12]
} Be6 {[%emt 0:2:49]} 14. Qb3 {[%emt 0:1:17]} Ne4 {[%emt 0:0:0]} 15. Rfd1 {[%emt 0:4:47]} dxc4 {[%emt 0:0:39]} 16. Bxc4 {[%emt 0:0:27]} Rxc4 {[%emt 0:0:35]} 17. Nxc4 {[%emt 0:0:13]} Nxc3 {[%emt 0:0:1]} 18. Qxc3 {[%emt 0:0:55]} Nxa2 {[%emt 0:0:38]} 19. Qxa5 {[%emt 0:0:57]} Nxc1 {[%emt 0:0:0]} 20. Rxc1 {[%emt 0:0:23]} Qxa5 {[%emt 0:0:47]} 21. Nxa5 {[%emt 0:0:0]} Ra8 {[%emt 0:0:5]} 22. Bb4 {[%emt 0:0:27]} Bd5 {[%emt 0:0:2]} 23. h3 {[%emt 0:2:10]} Bf8 {[%emt 0:1:52]} 24. Rc7 {[%emt 0:1:10]} Rb8 {[%emt 0:0:0]} 25. f3 {[%emt 0:0:30]} b6 {[%emt 0:0:47]} 26. Nc6 {[%emt 0:0:22]} Bxc6 {[%emt 0:0:2]} 27. Rxc6 {[%emt 0:0:1]} e6 {[%emt 0:0:1]} 28. Bxf8 {[%emt 0:0:11]
} Kxf8 {[%emt 0:0:1]} 29. Kf2 {[%emt 0:0:15]} b5 {[%emt 0:0:0]} 30. Ke2 {[%emt 0:0:5]} h5 {[%emt 0:0:7]} 31. h4 {[%emt 0:0:6]} b4 {[%emt 0:0:24]
} 32. Kd2 {[%emt 0:0:3]} Ra8 {[%emt 0:0:3]} 33. g4 {[%emt 0:0:0]} Ra2+ {[%emt 0:0:30]} 34. Kd3 {[%emt 0:0:6]} hxg4 35. fxg4 Rg2 {[%emt 0:0:36]
} 36. g5 {[%emt 0:0:19]} b3 {[%emt 0:0:22]} 37. Rb6 {[%emt 0:0:0]} b2 {[%emt 0:0:5]} 38. Kc3 {[%emt 0:0:20]} Re2 {[%emt 0:0:1]} 39. Kd3 {[%emt 0:0:6]} Rh2 {[%emt 0:0:3]} 40. Kc3 {[%emt 0:0:7]} Rxh4 {[%emt 0:0:34]
} 41. Rxb2 {[%emt 0:0:6]} Rh3 {[%emt 0:0:1]} 42. Kd3 {[%emt 0:0:3]
} Rf3 {[%emt 0:0:3]} 43. Rg2 {[%emt 0:0:17]} Ke7 {[%emt 0:0:0]} 44. Rg4 {[%emt 0:0:12]} Rf2 {[%emt 0:0:13]} 45. e4 {[%emt 0:0:23]} Rf3+ {[%emt 0:0:30]} 46. Kc4 {[%emt 0:0:6]} e5 {[%emt 0:0:17]} 47. d5 {[%emt 0:0:0]} Kd6 {[%emt 0:0:17]} 48. Rh4 {[%emt 0:1:2]} Rg3 {[%emt 0:0:40]} 49. Rh7 {[%emt 0:0:3]} Ke7 {[%emt 0:0:2]} 50. d6+ {[%emt 0:0:23]} Kxd6 {[%emt 0:0:20]
} 51. Rxf7 {[%emt 0:0:1]} Rxg5 {[%emt 0:0:8]} 52. Rf6+ {[%emt 0:0:1]
} Ke7 {[%emt 0:0:2]} 53. Ra6 {[%emt 0:0:1]} Kf7 {[%emt 0:0:0]} 54. Ra7+ {[%emt 0:0:12]} Kf6 {[%emt 0:0:7]} 55. Kd5 {[%emt 0:0:9]} Rh5 {[%emt 0:0:23]} 56. Ra6+ {[%emt 0:0:6]} Kg7 {[%emt 0:0:14]} 57. Re6 {[%emt 0:0:12]
} Rh8 {[%emt 0:0:5]} 58. Kxe5 {[%emt 0:0:8]} Rf8 {[%emt 0:0:0]} 59. Re7+ {[%emt 0:0:10]} Kh6 {[%emt 0:0:4]} 60. Kd6 {[%emt 0:0:11]} g5 {[%emt 0:0:4]} 61. Ra7 {[%emt 0:1:3]} g4 {[%emt 0:0:11]} 62. e5 {[%emt 0:0:0]} g3 1/2-1/2

[Event "FIDE World Rapid-ch Open 2018"]
[White "Kazhgaleyev, Murtas"]
[Black "Perdomo, Carlos Andres"]
[Site "St. Petersburg"]
[Round "6.94"]
[Annotator "ChessBase"]
[Result "1-0"]
[Date "2018.12.27"]
[WhiteElo "2587"]
[BlackElo "2301"]
[PlyCount "93"]
[TimeControl "900+10"]

1. d4 {[%emt 0:0:0]} d5 {[%emt 0:0:0]} 2. c4 {[%emt 0:0:0]} e6 {[%emt 0:0:0]} 3. Nc3 {[%emt 0:0:0]} Nf6 {[%emt 0:0:0]} 4. cxd5 {[%emt 0:0:0]} exd5 {[%emt 0:0:1]} 5. Bg5 {[%emt 0:0:1]} c6 {[%emt 0:0:8]} 6. e3 {[%emt 0:0:2]
} Nbd7 {[%emt 0:0:10]} 7. Bd3 {[%emt 0:0:3]} Be7 {[%emt 0:0:0]} 8. Qc2 {[%emt 0:0:2]} Nf8 {[%emt 0:0:5]} 9. Nf3 {[%emt 0:0:9]} Ne6 {[%emt 0:0:7]
} 10. Bh4 {[%emt 0:0:4]} g6 {[%emt 0:0:2]} 11. 0-0 {[%emt 0:0:0]} Ng7 {[%emt 0:0:7]} 12. Rab1 {[%emt 0:0:5]} Bf5 {[%emt 0:0:29]} 13. b4 {[%emt 0:0:4]} a6 {[%emt 0:0:12]} 14. a4 {[%emt 0:0:5]} Bxd3 {[%emt 0:0:0]} 15. Qxd3 {[%emt 0:0:2]} b5 {[%emt 0:0:18]} 16. Ne5 {[%emt 0:0:54]} Rc8 {[%emt 0:0:19]} 17. axb5 {[%emt 0:0:3]} axb5 {[%emt 0:0:20]} 18. Rfc1 {[%emt 0:2:15]
} 0-0 {[%emt 0:1:13]} 19. Ne2 {[%emt 0:0:9]} Nd7 {[%emt 0:0:0]} 20. Nxc6 {[%emt 0:0:19]} Rxc6 {[%emt 0:0:4]} 21. Rxc6 {[%emt 0:0:3]} Bxh4 {[%emt 0:0:2]} 22. Qxb5 {[%emt 0:0:6]} Nf6 {[%emt 0:0:9]} 23. g3 {[%emt 0:0:37]
} Bg5 {[%emt 0:0:1]} 24. Qb6 {[%emt 0:0:20]} Qe7 {[%emt 0:0:0]} 25. Nc3 {[%emt 0:0:51]} Ne6 {[%emt 0:0:34]} 26. Ra1 {[%emt 0:0:46]} Rd8 {[%emt 0:1:59]} 27. Ra7 {[%emt 0:0:58]} Qe8 {[%emt 0:0:6]} 28. b5 {[%emt 0:0:0]} Ng4 {[%emt 0:1:50]} 29. h4 {[%emt 0:2:23]} Nxe3 {[%emt 0:1:12]} 30. Rxe6 {[%emt 0:0:50]} Qxe6 {[%emt 0:3:19]} 31. Qxe6 {[%emt 0:0:2]} fxe6 {[%emt 0:0:1]
} 32. hxg5 {[%emt 0:0:4]} Nf5 {[%emt 0:0:8]} 33. b6 {[%emt 0:0:0]} Nxd4 {[%emt 0:0:23]} 34. Rc7 {[%emt 0:0:9]} Nb3 {[%emt 0:1:15]} 35. Nb5 {[%emt 0:1:15]} d4 {[%emt 0:0:15]} 36. b7 {[%emt 0:1:37]} Na5 {[%emt 0:0:0]} 37. Kf1 {[%emt 0:0:13]} d3 {[%emt 0:0:11]} 38. Ke1 {[%emt 0:0:7]} Nxb7 {[%emt 0:0:42]} 39. Rxb7 {[%emt 0:0:2]} Rd5 {[%emt 0:0:1]} 40. f4 {[%emt 0:0:12]
} e5 {[%emt 0:0:1]} 41. Nc3 {[%emt 0:0:42]} Ra5 {[%emt 0:0:0]} 42. Kd2 {[%emt 0:0:33]} exf4 {[%emt 0:0:6]} 43. gxf4 {[%emt 0:0:1]} h6 {[%emt 0:0:16]} 44. gxh6 {[%emt 0:0:14]} g5 {[%emt 0:0:6]} 45. Rg7+ {[%emt 0:0:8]
} Kh8 {[%emt 0:0:5]} 46. Rxg5 {[%emt 0:0:2]} Ra6 {[%emt 0:0:0]} 47. Rh5 {[%emt 0:0:7]} 1-0

[Event "FIDE World Rapid-ch Open 2018"]
[White "Apryshko, Gleb"]
[Black "Mamatov, Melis"]
[Site "St. Petersburg"]
[Round "6.95"]
[Annotator "NA"]
[Result "1-0"]
[Date "2018.12.27"]
[WhiteElo "2385"]
[BlackElo "2223"]
[PlyCount "69"]
[TimeControl "900+10"]

1. e4 {[%emt 0:1:44]} c5 {[%emt 0:0:0]} 2. Nf3 {[%emt 0:0:2]} d6 {[%emt 0:0:0]} 3. d4 {[%emt 0:0:5]} cxd4 {[%emt 0:0:1]} 4. Qxd4 {[%emt 0:0:2]} Nc6 {[%emt 0:0:58]} 5. Bb5 {[%emt 0:0:2]} Bd7 {[%emt 0:0:33]} 6. Qd3 {[%emt 0:0:1]
} Nf6 {[%emt 0:0:33]} 7. c4 {[%emt 0:0:1]} g6 {[%emt 0:1:51]} 8. h3 {[%emt 0:0:2]} Bg7 {[%emt 0:0:2]} 9. Nc3 {[%emt 0:0:1]} 0-0 {[%emt 0:0:4]
} 10. 0-0 {[%emt 0:0:1]} a6 {[%emt 0:0:27]} 11. Bxc6 {[%emt 0:0:0]} Bxc6 {[%emt 0:0:10]} 12. Nd4 {[%emt 0:0:3]} Nd7 {[%emt 0:0:26]} 13. Be3 {[%emt 0:0:14]} Rc8 {[%emt 0:1:38]} 14. Rac1 {[%emt 0:0:19]} Nc5 {[%emt 0:0:52]
} 15. Qc2 {[%emt 0:0:3]} Ne6 {[%emt 0:0:13]} 16. Nxe6 {[%emt 0:0:47]
} fxe6 {[%emt 0:0:1]} 17. Qb3 {[%emt 0:0:1]} Qd7 {[%emt 0:0:0]} 18. Rfd1 {[%emt 0:0:33]} Bxc3 {[%emt 0:0:58]} 19. Qxc3 {[%emt 0:0:53]} Bxe4 {[%emt 0:0:2]} 20. Qd4 {[%emt 0:5:12]} Bc6 {[%emt 0:1:18]} 21. Bh6 {[%emt 0:1:21]
} Rf7 {[%emt 0:0:44]} 22. f4 {[%emt 0:0:7]} b5 {[%emt 0:2:51]
} 23. c5 {[%emt 0:0:2]} Bd5 {[%emt 0:0:14]} 24. f5 {[%emt 0:0:43]} dxc5 {[%emt 0:1:40]
} 25. fxe6 {[%emt 0:0:7]} Qxe6 {[%emt 0:2:15]} 26. Qxd5 {[%emt 0:0:3]
} Qxd5 {[%emt 0:0:6]} 27. Rxd5 {[%emt 0:0:3]} c4 {[%emt 0:0:0]} 28. Rd7 {[%emt 0:1:4]} e5 {[%emt 0:0:20]} 29. Rcd1 {[%emt 0:0:1]} Re8 {[%emt 0:0:10]} 30. Rd8 {[%emt 0:0:2]} Rfe7 {[%emt 0:0:3]} 31. Rxe8+ {[%emt 0:0:16]
} Rxe8 {[%emt 0:0:1]} 32. Rd7 {[%emt 0:0:1]} Rc8 {[%emt 0:0:0]} 33. Bd2 {[%emt 0:0:11]} a5 {[%emt 0:0:14]} 34. Bxa5 {[%emt 0:0:5]} Ra8 {[%emt 0:0:1]} 35. Rd8+ {[%emt 0:0:1]} 1-0